[Event "FIDE World Junior U20-ch Girls 2025"]
[Site "Petrovac"]
[Date "2025.03.02"]
[Round "6.45"]
[White "Ajradinoska, Indzi"]
[Black "Canino, Ruelle"]
[Result "0-1"]
[Annotator "ChessBase"]
[ECO "A40"]
[WhiteElo "1761"]
[BlackElo "2179"]
[PlyCount "134"]
[EventDate "2025.02.23"]
[EventType "swiss"]
[EventCountry "MNE"]
[SourceTitle "playchess.com"]
[Source "ChessBase"]
[SourceQuality "1"]
[TimeControl "40/5400+30:1800+30"]

1. d4 {[%emt 0:00:02]} g6 {[%emt 0:00:09]} 2. Nf3 {[%emt 0:00:06]} Bg7 {[%emt 0:00:05]} 3. g3 {[%emt 0:00:06]} d6 {[%emt 0:00:32]} 4. Bg2 {[%emt 0:00:06]} Nd7 {[%emt 0:00:03]} 5. O-O {[%emt 0:00:07]} e5 {[%emt 0:00:25]} 6. c4 {[%emt 0:00:17]} exd4 {[%emt 0:00:40]} 7. Nxd4 {[%emt 0:00:15]} Ne7 {[%emt 0:00:28]} 8. Nc3 {[%emt 0:01:00]} O-O {[%emt 0:00:27]} 9. e3 {[%emt 0:01:27]} Ne5 {[%emt 0:01:16]} 10. b3 {[%emt 0:08:35]} Bg4 {[%emt 0:03:31]} 11. f3 {[%emt 0:07:34]} Bd7 {[%emt 0:00:49]} 12. Bb2 {[%emt 0:01:07]} a5 {[%emt 0:02:04]} 13. Qc2 {[%emt 0:03:14]} a4 {[%emt 0:02:27]} 14. Rad1 {[%emt 0:03:08]} Re8 {[%emt 0:06:18]} 15. Rfe1 {[%emt 0:07:24]} axb3 {[%emt 0:02:33]} 16. axb3 {[%emt 0:03:27]} N7c6 {[%emt 0:02:15]} 17. Nxc6 {[%emt 0:10:24]} Nxc6 {[%emt 0:01:29]} 18. Qf2 {[%emt 0:03:51]} Nb4 {[%emt 0:04:51]} 19. Re2 {[%emt 0:01:12]} Ra5 {[%emt 0:04:56]} 20. Red2 {[%emt 0:02:54]} Bc6 {[%emt 0:05:23]} 21. e4 {[%emt 0:01:41]} Qa8 {[%emt 0:04:22]} 22. f4 {[%emt 0:05:13]} Qa7 {[%emt 0:02:18]} 23. Qxa7 {[%emt 0:04:21]} Rxa7 {[%emt 0:00:05]} 24. Nd5 {[%emt 0:05:10]} Bxd5 {[%emt 0:01:04]} 25. cxd5 {[%emt 0:00:22]} Bxb2 {[%emt 0:02:11]} 26. Rxb2 {[%emt 0:00:05]} Ra3 {[%emt 0:01:46]} 27. Rd4 {[%emt 0:04:07]} Na6 {[%emt 0:02:22]} 28. b4 {[%emt 0:00:06]} Ra4 {[%emt 0:01:23]} 29. Kf2 {[%emt 0:02:32]} Nc5 {[%emt 0:10:41]} 30. Ke3 {[%emt 0:02:06]} Ra3+ {[%emt 0:03:31]} 31. Ke2 {[%emt 0:00:24]} Na4 {[%emt 0:00:25]} 32. Rc2 {[%emt 0:01:36]} Nc3+ {[%emt 0:01:04]} 33. Kd2 {[%emt 0:02:08]} Nb5 {[%emt 0:01:14]} 34. Rd3 {[%emt 0:02:19]} Ra1 {[%emt 0:01:09]} 35. Rc1 {[%emt 0:03:49]} Ra2+ {[%emt 0:01:56]} 36. Rc2 {[%emt 0:00:23]} Rea8 {[%emt 0:00:37]} 37. Bf1 {[%emt 0:06:23]} Rxc2+ {[%emt 0:02:08]} 38. Kxc2 {[%emt 0:00:06]} Ra2+ {[%emt 0:00:20]} 39. Kb3 {[%emt 0:01:52]} Rxh2 {[%emt 0:00:55]} 40. Re3 {[%emt 0:00:54]} Nd4+ {[%emt 0:07:42]} 41. Kc3 {[%emt 0:32:23]} Rf2 {[%emt 0:31:30]} 42. Bd3 {[%emt 0:06:01]} Nf3 {[%emt 0:01:28]} 43. e5 {[%emt 0:00:00]} Kf8 {[%emt 0:00:00]} 44. b5 {[%emt 0:00:00]} Ke7 {[%emt 0:00:00]} 45. Be2 {[%emt 0:00:00]} Nh2 {[%emt 0:00:00]} 46. Kd3 {[%emt 0:00:00]} Nf1 {[%emt 0:00:00]} 47. Bxf1 {[%emt 0:00:00]} Rxf1 {[%emt 0:00:00]} 48. Kc4 {[%emt 0:00:00]} Rc1+ {[%emt 0:00:00]} 49. Kb4 {[%emt 0:00:00]} Rc5 {[%emt 0:00:00]} 50. Rd3 {[%emt 0:00:00]} b6 {[%emt 0:00:00]} 51. Rd2 {[%emt 0:00:00]} h5 {[%emt 0:00:00]} 52. Rd3 {[%emt 0:00:00]} Rc1 {[%emt 0:00:00]} 53. Re3 {[%emt 0:00:00]} Rb1+ {[%emt 0:00:06]} 54. Kc4 {[%emt 0:00:00]} Rh1 {[%emt 0:00:35]} 55. Kd4 {[%emt 0:00:00]} h4 {[%emt 0:03:36]} 56. g4 {[%emt 0:00:00]} h3 {[%emt 0:00:54]} 57. Ke4 {[%emt 0:00:00]} h2 {[%emt 0:01:14]} 58. Re2 {[%emt 0:00:00]} dxe5 {[%emt 0:02:04]} 59. Kxe5 {[%emt 0:00:00]} f6+ {[%emt 0:00:37]} 60. Ke4 {[%emt 0:00:00]} Kd6 {[%emt 0:00:25]} 61. f5 {[%emt 0:01:55]} g5 {[%emt 0:00:20]} 62. Ke3 {[%emt 0:00:19]} Kxd5 {[%emt 0:00:25]} 63. Rd2+ {[%emt 0:00:13]} Kc5 {[%emt 0:00:26]} 64. Kd3 {[%emt 0:01:08]} Kxb5 {[%emt 0:02:23]} 65. Kd4 {[%emt 0:00:40]} Ka4 {[%emt 0:02:10]} 66. Ra2+ {[%emt 0:00:19]} Kb3 {[%emt 0:00:06]} 67. Rd2 {[%emt 0:00:57]} c5+ {[%emt 0:00:11]} 0-1

[Event "FIDE World Junior U20-ch Girls 2025"]
[Site "Petrovac"]
[Date "2025.03.02"]
[Round "6.46"]
[White "Popovic, Mateja"]
[Black "Kaloki, Zuri"]
[Result "1-0"]
[Annotator "NA"]
[ECO "D50"]
[WhiteElo "1917"]
[BlackElo "1784"]
[PlyCount "57"]
[EventDate "2025.02.23"]
[EventType "swiss"]
[EventCountry "MNE"]
[SourceTitle "playchess.com"]
[Source "ChessBase"]
[SourceQuality "1"]
[TimeControl "40/5400+30:1800+30"]

1. d4 {[%emt 0:00:13]} d5 {[%emt 0:00:03]} 2. c4 {[%emt 0:00:04]} e6 {[%emt 0:00:05]} 3. Nc3 {[%emt 0:00:04]} Nf6 {[%emt 0:00:07]} 4. Bg5 {[%emt 0:00:06]} Bb4 {[%emt 0:00:35]} 5. cxd5 {[%emt 0:03:24]} exd5 {[%emt 0:00:06]} 6. Nf3 {[%emt 0:00:13]} h6 {[%emt 0:00:05]} 7. Bh4 {[%emt 0:01:01]} g5 {[%emt 0:00:12]} 8. Bg3 {[%emt 0:00:58]} Ne4 {[%emt 0:00:07]} 9. Rc1 {[%emt 0:02:50]} h5 {[%emt 0:00:47]} 10. Qa4+ {[%emt 0:09:25]} Nc6 {[%emt 0:00:52]} 11. Ne5 {[%emt 0:00:41]} Bd7 {[%emt 0:22:38]} 12. Nxd7 {[%emt 0:02:51]} Qxd7 {[%emt 0:00:09]} 13. f3 {[%emt 0:03:59]} Nxg3 {[%emt 0:16:58]} 14. hxg3 {[%emt 0:00:07]} Qd6 {[%emt 0:01:06]} 15. Rh3 {[%emt 0:08:25]} O-O {[%emt 0:18:05]} 16. Kf2 {[%emt 0:11:50]} h4 {[%emt 0:12:59]} 17. gxh4 {[%emt 0:01:25]} Qf6 {[%emt 0:00:22]} 18. e3 {[%emt 0:05:29]} Bxc3 {[%emt 0:04:50]} 19. hxg5 {[%emt 0:01:06]} Qe6 {[%emt 0:01:16]} 20. bxc3 {[%emt 0:02:23]} Rae8 {[%emt 0:00:58]} 21. Re1 {[%emt 0:02:19]} Ne7 {[%emt 0:02:14]} 22. Bd3 {[%emt 0:01:14]} Ng6 {[%emt 0:01:03]} 23. Qd1 {[%emt 0:01:18]} Re7 {[%emt 0:02:45]} 24. f4 {[%emt 0:02:21]} f5 {[%emt 0:00:42]} 25. Rh6 {[%emt 0:03:06]} Qd6 {[%emt 0:01:19]} 26. Qh5 {[%emt 0:01:37]} Re6 {[%emt 0:01:53]} 27. Rh1 {[%emt 0:03:42]} Qc6 {[%emt 0:01:05]} 28. Rxg6+ {[%emt 0:00:12]} Rxg6 {[%emt 0:00:28]} 29. Qh7# {[%emt 0:00:04]} 1-0

[Event "FIDE World Junior U20-ch Girls 2025"]
[Site "Petrovac"]
[Date "2025.03.03"]
[Round "7.1"]
[White "Yakimova, Mariya"]
[Black "Allahverdiyeva, Ayan"]
[Result "1-0"]
[Annotator "NA RC"]
[ECO "E47"]
[WhiteElo "2201"]
[BlackElo "2284"]
[PlyCount "57"]
[EventDate "2025.02.23"]
[EventType "swiss"]
[EventCountry "MNE"]
[SourceTitle "playchess.com"]
[Source "ChessBase"]
[SourceQuality "1"]
[TimeControl "40/5400+30:1800+30"]

1. d4 {[%emt 0:00:09]} Nf6 {[%emt 0:00:28]} 2. c4 {[%emt 0:00:10]} e6 {[%emt 0:00:02]} 3. Nc3 {[%emt 0:00:08]} Bb4 {[%emt 0:00:37]} 4. e3 {[%emt 0:00:07]} O-O {[%emt 0:01:11]} 5. Bd3 {[%emt 0:00:11]} Re8 {[%emt 0:00:04]} 6. Nge2 {[%emt 0:00:22]} d5 {[%emt 0:01:21]} 7. a3 {[%emt 0:08:46]} Bf8 {[%emt 0:00:17]} 8. O-O {[%emt 0:00:08]} Nbd7 {[%emt 0:01:40]} 9. cxd5 {[%emt 0:00:30]} exd5 {[%emt 0:00:05]} 10. Nf4 {[%emt 0:00:13]} Nb6 {[%emt 0:01:07]} 11. a4 {[%emt 0:00:22]} a5 {[%emt 0:02:48]} 12. b3 {[%emt 0:00:21]} Bb4 {[%emt 0:13:42]} 13. Nce2 {[%emt 0:02:10]} Qe7 {[%emt 0:05:57]} 14. Ra2 {[%emt 0:13:39]} Ne4 {[%emt 0:11:43]} 15. f3 {[%emt 0:01:43]} Nd6 {[%emt 0:00:16]} 16. g4 {[%emt 0:06:02]} h6 {[%emt 0:01:09]} 17. Kh1 {[%emt 0:02:09]} c6 {[%emt 0:02:48]} 18. Ng3 {[%emt 0:04:33]} c5 {[%emt 0:03:36]} 19. dxc5 {[%emt 0:00:46]} Bxc5 {[%emt 0:00:03]} 20. Bb1 {[%emt 0:00:55]} Bxe3 {[%emt 0:03:45]} 21. Qd3 {[%emt 0:12:42]} Kf8 {[%emt 0:01:24]} 22. Qh7 {[%emt 0:05:39]} Qg5 {[%emt 0:01:15]} 23. Ngh5 {[%emt 0:01:59]} Bxc1 {[%emt 0:05:47]} 24. Ng6+ {[%emt 0:02:00]} Qxg6 {[%emt 0:02:29]} 25. Bxg6 {[%emt 0:00:11]} Re6 {[%emt 0:03:23]} 26. Qxg7+ {[%emt 0:03:59]} Ke7 {[%emt 0:00:03]} 27. Bf5 {[%emt 0:00:50]} Nxf5 {[%emt 0:00:29]} 28. gxf5 {[%emt 0:00:06]} Rc6 {[%emt 0:00:29]} 29. Re2+ {[%emt 0:00:15]} 1-0

[Event "FIDE World Junior U20-ch Girls 2025"]
[Site "Petrovac"]
[Date "2025.03.03"]
[Round "7.2"]
[White "Mgeladze, Kesaria"]
[Black "Omonova, Umida"]
[Result "1/2-1/2"]
[Annotator "NA RC"]
[ECO "B40"]
[WhiteElo "2219"]
[BlackElo "2228"]
[PlyCount "57"]
[EventDate "2025.02.23"]
[EventType "swiss"]
[EventCountry "MNE"]
[SourceTitle "playchess.com"]
[Source "ChessBase"]
[SourceQuality "1"]
[TimeControl "40/5400+30:1800+30"]

1. e4 {[%emt 0:00:02]} c5 {[%emt 0:00:43]} 2. Nf3 {[%emt 0:00:08]} e6 {[%emt 0:00:06]} 3. d4 {[%emt 0:00:04]} cxd4 {[%emt 0:00:06]} 4. Nxd4 {[%emt 0:00:04]} Nf6 {[%emt 0:00:11]} 5. Nc3 {[%emt 0:00:06]} Nc6 {[%emt 0:00:08]} 6. Nxc6 {[%emt 0:00:10]} bxc6 {[%emt 0:00:07]} 7. e5 {[%emt 0:00:04]} Nd5 {[%emt 0:00:09]} 8. Ne4 {[%emt 0:00:08]} Qc7 {[%emt 0:00:33]} 9. f4 {[%emt 0:00:19]} Qb6 {[%emt 0:01:01]} 10. c4 {[%emt 0:00:15]} Ne3 {[%emt 0:00:26]} 11. Qd3 {[%emt 0:00:11]} Bb4+ {[%emt 0:00:18]} 12. Bd2 {[%emt 0:00:50]} Ba6 {[%emt 0:00:28]} 13. Bxb4 {[%emt 0:01:44]} Qxb4+ {[%emt 0:01:52]} 14. Kf2 {[%emt 0:00:06]} Qxb2+ {[%emt 0:00:28]} 15. Be2 {[%emt 0:00:06]} Nxc4 {[%emt 0:00:58]} 16. Rab1 {[%emt 0:00:57]} Nxe5 {[%emt 0:00:09]} 17. fxe5 {[%emt 0:00:05]} Qxe5 {[%emt 0:00:47]} 18. Qxa6 {[%emt 0:00:07]} Qxe4 {[%emt 0:00:08]} 19. Rhd1 {[%emt 0:09:30]} O-O {[%emt 0:00:32]} 20. Rb7 {[%emt 0:03:51]} d5 {[%emt 0:02:26]} 21. Bf3 {[%emt 0:18:40]} Qf4 {[%emt 0:02:21]} 22. Kg1 {[%emt 0:08:39]} Rfc8 {[%emt 0:00:25]} 23. Rf1 {[%emt 0:04:16]} Qe5 {[%emt 0:00:09]} 24. Kh1 {[%emt 0:04:33]} g6 {[%emt 0:07:43]} 25. Rxa7 {[%emt 0:12:30]} Rab8 {[%emt 0:00:17]} 26. Rb7 {[%emt 0:06:23]} Ra8 {[%emt 0:00:07]} 27. Ra7 {[%emt 0:00:19]} Rab8 {[%emt 0:00:05]} 28. Rb7 {[%emt 0:06:00]} Ra8 {[%emt 0:00:14]} 29. Ra7 {[%emt 0:00:05]} 1/2-1/2

[Event "FIDE World Junior U20-ch Girls 2025"]
[Site "Petrovac"]
[Date "2025.03.03"]
[Round "7.3"]
[White "Hrebenshchykova, Yelyzaveta"]
[Black "Rakshitta Ravi"]
[Result "1-0"]
[Annotator "ChessBase"]
[ECO "A05"]
[WhiteElo "2259"]
[BlackElo "2365"]
[PlyCount "86"]
[EventDate "2025.02.23"]
[EventType "swiss"]
[EventCountry "MNE"]
[SourceTitle "playchess.com"]
[Source "ChessBase"]
[SourceQuality "1"]
[TimeControl "40/5400+30:1800+30"]

1. Nf3 {[%emt 0:00:02]} Nf6 {[%emt 0:03:41]} 2. g3 {[%emt 0:00:25]} c5 {[%emt 0:00:18]} 3. Bg2 {[%emt 0:00:53]} Nc6 {[%emt 0:00:05]} 4. O-O {[%emt 0:00:21]} e5 {[%emt 0:00:18]} 5. e4 {[%emt 0:04:24]} d6 {[%emt 0:04:59]} 6. d3 {[%emt 0:07:47]} Be6 {[%emt 0:02:31]} 7. Nc3 {[%emt 0:08:31]} h6 {[%emt 0:01:39]} 8. Nd2 {[%emt 0:06:35]} g5 {[%emt 0:17:16]} 9. Nc4 {[%emt 0:07:57]} Rg8 {[%emt 0:08:33]} 10. Kh1 {[%emt 0:05:19]} Qd7 {[%emt 0:06:25]} 11. Nd5 {[%emt 0:04:37]} Bxd5 {[%emt 0:10:12]} 12. exd5 {[%emt 0:00:05]} Ne7 {[%emt 0:00:17]} 13. f4 {[%emt 0:10:14]} exf4 {[%emt 0:02:02]} 14. gxf4 {[%emt 0:02:16]} g4 {[%emt 0:00:04]} 15. d4 {[%emt 0:03:25]} cxd4 {[%emt 0:03:15]} 16. Qxd4 {[%emt 0:02:37]} Bg7 {[%emt 0:01:09]} 17. Qd3 {[%emt 0:00:18]} b5 {[%emt 0:05:08]} 18. Ne3 {[%emt 0:10:00]} h5 {[%emt 0:02:11]} 19. Bd2 {[%emt 0:00:40]} h4 {[%emt 0:01:43]} 20. a4 {[%emt 0:08:38]} h3 {[%emt 0:11:27]} 21. Be4 {[%emt 0:00:05]} Nxe4 {[%emt 0:00:23]} 22. Qxe4 {[%emt 0:01:13]} f5 {[%emt 0:00:04]} 23. Qd3 {[%emt 0:00:48]} Kf7 {[%emt 0:02:43]} 24. axb5 {[%emt 0:01:04]} Bxb2 {[%emt 0:01:27]} 25. Rab1 {[%emt 0:05:14]} Bf6 {[%emt 0:00:12]} 26. Nc4 {[%emt 0:00:39]} Rg6 {[%emt 0:04:44]} 27. Bb4 {[%emt 0:00:34]} Bh8 {[%emt 0:02:18]} 28. Rfe1 {[%emt 0:01:49]} Qb7 {[%emt 0:02:43]} 29. Rbd1 {[%emt 0:04:47]} Rd8 {[%emt 0:00:54]} 30. Na5 {[%emt 0:00:37]} Qd7 {[%emt 0:02:51]} 31. Nc6 {[%emt 0:00:05]} Re8 {[%emt 0:00:22]} 32. Re2 {[%emt 0:00:27]} Rgg8 {[%emt 0:01:52]} 33. Rde1 {[%emt 0:00:57]} Ng6 {[%emt 0:01:24]} 34. Re6 {[%emt 0:00:14]} Nh4 {[%emt 0:01:44]} 35. R1e2 {[%emt 0:02:59]} Bf6 {[%emt 0:00:28]} 36. Bxd6 {[%emt 0:00:08]} Kg7 {[%emt 0:00:34]} 37. Be7 {[%emt 0:00:32]} Ref8 {[%emt 0:00:32]} 38. Bxf6+ {[%emt 0:00:18]} Rxf6 {[%emt 0:00:27]} 39. Re7+ {[%emt 0:00:09]} Rf7 {[%emt 0:00:08]} 40. Rxd7 {[%emt 0:00:04]} Rxd7 {[%emt 0:00:02]} 41. Re7+ {[%emt 0:31:31]} Rxe7 {[%emt 0:30:05]} 42. Nxe7 {[%emt 0:00:03]} Re8 {[%emt 0:00:26]} 43. d6 {[%emt 0:00:09]} Rh8 {[%emt 0:01:02]} 1-0

[Event "FIDE World Junior U20-ch Girls 2025"]
[Site "Petrovac"]
[Date "2025.03.03"]
[Round "7.4"]
[White "Nurman, Alua"]
[Black "Zhurova, Anna"]
[Result "1-0"]
[Annotator "RC"]
[ECO "B48"]
[WhiteElo "2336"]
[BlackElo "2307"]
[PlyCount "71"]
[EventDate "2025.02.23"]
[EventType "swiss"]
[EventCountry "MNE"]
[SourceTitle "playchess.com"]
[Source "ChessBase"]
[SourceQuality "1"]
[TimeControl "40/5400+30:1800+30"]

1. e4 {[%emt 0:00:01]} c5 {[%emt 0:01:26]} 2. Nf3 {[%emt 0:00:16]} e6 {[%emt 0:00:08]} 3. d4 {[%emt 0:02:49]} cxd4 {[%emt 0:00:07]} 4. Nxd4 {[%emt 0:00:02]} Nc6 {[%emt 0:00:11]} 5. Nc3 {[%emt 0:00:31]} Qc7 {[%emt 0:00:09]} 6. Be3 {[%emt 0:00:24]} a6 {[%emt 0:00:10]} 7. a3 {[%emt 0:00:38]} b5 {[%emt 0:00:07]} 8. Nxc6 {[%emt 0:00:09]} Qxc6 {[%emt 0:00:07]} 9. h4 {[%emt 0:00:39]} Nf6 {[%emt 0:00:13]} 10. h5 {[%emt 0:00:34]} Nxe4 {[%emt 0:02:41]} 11. Nxe4 {[%emt 0:00:06]} Qxe4 {[%emt 0:00:07]} 12. Be2 {[%emt 0:00:05]} Qc6 {[%emt 0:01:02]} 13. Bf3 {[%emt 0:11:27]} d5 {[%emt 0:03:09]} 14. h6 {[%emt 0:00:06]} Rg8 {[%emt 0:09:27]} 15. Qd3 {[%emt 0:06:39]} g6 {[%emt 0:02:21]} 16. b3 {[%emt 0:02:33]} Qc7 {[%emt 0:10:46]} 17. c4 {[%emt 0:26:43]} dxc4 {[%emt 0:17:49]} 18. bxc4 {[%emt 0:00:36]} Bb7 {[%emt 0:00:28]} 19. Bxb7 {[%emt 0:02:24]} Qxb7 {[%emt 0:00:06]} 20. O-O {[%emt 0:03:47]} Rd8 {[%emt 0:05:25]} 21. Qe2 {[%emt 0:00:22]} bxc4 {[%emt 0:06:23]} 22. Qxc4 {[%emt 0:00:30]} Qb5 {[%emt 0:01:20]} 23. Qc2 {[%emt 0:04:06]} Bd6 {[%emt 0:03:29]} 24. Rfd1 {[%emt 0:02:12]} Ke7 {[%emt 0:09:19]} 25. Rab1 {[%emt 0:04:08]} Rc8 {[%emt 0:02:10]} 26. Qe4 {[%emt 0:13:36]} Qa5 {[%emt 0:07:18]} 27. Rb7+ {[%emt 0:03:43]} Rc7 {[%emt 0:00:43]} 28. Bb6 {[%emt 0:04:34]} Qh5 {[%emt 0:04:18]} 29. Rxd6 {[%emt 0:00:57]} Rxb7 {[%emt 0:00:15]} 30. Qxb7+ {[%emt 0:00:02]} Kxd6 {[%emt 0:00:07]} 31. Qc7+ {[%emt 0:00:03]} Kd5 {[%emt 0:00:13]} 32. f3 {[%emt 0:00:16]} e5 {[%emt 0:01:15]} 33. Qc5+ {[%emt 0:00:21]} Ke6 {[%emt 0:00:12]} 34. Qc6+ {[%emt 0:00:05]} Ke7 {[%emt 0:00:34]} 35. Bc5+ {[%emt 0:00:01]} Kd8 {[%emt 0:00:16]} 36. Qd6+ {[%emt 0:00:04]} 1-0

[Event "FIDE World Junior U20-ch Girls 2025"]
[Site "Petrovac"]
[Date "2025.03.03"]
[Round "7.5"]
[White "Toncheva, Nadya"]
[Black "Zhapova, Yana"]
[Result "1-0"]
[Annotator "RC"]
[ECO "C92"]
[WhiteElo "2311"]
[BlackElo "2234"]
[PlyCount "61"]
[EventDate "2025.02.23"]
[EventType "swiss"]
[EventCountry "MNE"]
[SourceTitle "playchess.com"]
[Source "ChessBase"]
[SourceQuality "1"]
[TimeControl "40/5400+30:1800+30"]

1. e4 {[%emt 0:00:03]} e5 {[%emt 0:03:12]} 2. Nf3 {[%emt 0:00:05]} Nc6 {[%emt 0:00:20]} 3. Bb5 {[%emt 0:00:05]} a6 {[%emt 0:00:20]} 4. Ba4 {[%emt 0:00:11]} Nf6 {[%emt 0:00:22]} 5. O-O {[%emt 0:00:07]} Be7 {[%emt 0:00:32]} 6. Re1 {[%emt 0:00:11]} b5 {[%emt 0:00:10]} 7. Bb3 {[%emt 0:00:05]} d6 {[%emt 0:00:22]} 8. c3 {[%emt 0:00:09]} O-O {[%emt 0:00:31]} 9. h3 {[%emt 0:00:05]} Bb7 {[%emt 0:00:19]} 10. d4 {[%emt 0:04:29]} Re8 {[%emt 0:01:28]} 11. a3 {[%emt 0:05:19]} h6 {[%emt 0:00:23]} 12. d5 {[%emt 0:02:11]} Na5 {[%emt 0:06:51]} 13. Ba2 {[%emt 0:00:14]} c6 {[%emt 0:00:54]} 14. dxc6 {[%emt 0:03:25]} Bxc6 {[%emt 0:06:12]} 15. Nbd2 {[%emt 0:02:22]} Bf8 {[%emt 0:04:58]} 16. Qc2 {[%emt 0:08:47]} Rc8 {[%emt 0:06:10]} 17. b4 {[%emt 0:02:45]} Nb7 {[%emt 0:02:37]} 18. c4 {[%emt 0:07:16]} bxc4 {[%emt 0:06:43]} 19. Qxc4 {[%emt 0:00:30]} d5 {[%emt 0:04:35]} 20. exd5 {[%emt 0:10:53]} Bxd5 {[%emt 0:01:02]} 21. Qxa6 {[%emt 0:00:40]} e4 {[%emt 0:08:23]} 22. Bxd5 {[%emt 0:06:00]} Qxd5 {[%emt 0:01:04]} 23. Nh2 {[%emt 0:00:57]} Nd6 {[%emt 0:12:50]} 24. Ndf1 {[%emt 0:01:12]} Nb5 {[%emt 0:01:38]} 25. Bb2 {[%emt 0:07:40]} Nh5 {[%emt 0:11:47]} 26. Rad1 {[%emt 0:01:54]} Qg5 {[%emt 0:04:45]} 27. h4 {[%emt 0:00:25]} Qxh4 {[%emt 0:01:33]} 28. Qxb5 {[%emt 0:00:08]} Re6 {[%emt 0:00:10]} 29. Qf5 {[%emt 0:00:48]} Rc2 {[%emt 0:00:39]} 30. Bd4 {[%emt 0:00:31]} Bd6 {[%emt 0:02:29]} 31. Qg4 {[%emt 0:00:46]} 1-0

[Event "FIDE World Junior U20-ch Girls 2025"]
[Site "Petrovac"]
[Date "2025.03.03"]
[Round "7.6"]
[White "Lu, Miaoyi"]
[Black "Balabayeva, Xeniya"]
[Result "1-0"]
[Annotator "RC"]
[ECO "B15"]
[WhiteElo "2432"]
[BlackElo "2264"]
[PlyCount "89"]
[EventDate "2025.02.23"]
[EventType "swiss"]
[EventCountry "MNE"]
[SourceTitle "playchess.com"]
[Source "ChessBase"]
[SourceQuality "1"]
[TimeControl "40/5400+30:1800+30"]

1. e4 {[%emt 0:00:02]} c6 {[%emt 0:00:08]} 2. d4 {[%emt 0:00:05]} d5 {[%emt 0:00:08]} 3. Nc3 {[%emt 0:00:05]} dxe4 {[%emt 0:00:09]} 4. Nxe4 {[%emt 0:00:04]} Nf6 {[%emt 0:00:19]} 5. Nxf6+ {[%emt 0:00:04]} exf6 {[%emt 0:00:09]} 6. Be3 {[%emt 0:00:04]} Bf5 {[%emt 0:12:53]} 7. Ne2 {[%emt 0:00:54]} Bd6 {[%emt 0:07:16]} 8. c4 {[%emt 0:00:18]} O-O {[%emt 0:02:59]} 9. Nc3 {[%emt 0:00:48]} Re8 {[%emt 0:06:04]} 10. Qf3 {[%emt 0:05:14]} Bg6 {[%emt 0:11:02]} 11. c5 {[%emt 0:12:04]} Bc7 {[%emt 0:09:19]} 12. O-O-O {[%emt 0:01:12]} Ba5 {[%emt 0:04:50]} 13. Bf4 {[%emt 0:14:28]} Bxc3 {[%emt 0:04:04]} 14. Qxc3 {[%emt 0:04:39]} Qd5 {[%emt 0:08:05]} 15. h4 {[%emt 0:07:33]} b5 {[%emt 0:05:07]} 16. cxb6 {[%emt 0:15:47]} axb6 {[%emt 0:00:57]} 17. Bc4 {[%emt 0:03:52]} Qf5 {[%emt 0:04:08]} 18. Be3 {[%emt 0:10:16]} b5 {[%emt 0:02:54]} 19. h5 {[%emt 0:09:07]} bxc4 {[%emt 0:05:46]} 20. hxg6 {[%emt 0:00:22]} Qxg6 {[%emt 0:00:43]} 21. Qxc4 {[%emt 0:02:19]} Qg4 {[%emt 0:03:06]} 22. g3 {[%emt 0:00:30]} Qxg3 {[%emt 0:00:00]} 23. Rdg1 {[%emt 0:11:04]} Qe5 {[%emt 0:00:13]} 24. Qc2 {[%emt 0:00:45]} Qd5 {[%emt 0:03:01]} 25. a3 {[%emt 0:00:03]} g6 {[%emt 0:02:57]} 26. Rh2 Nd7 {[%emt 0:00:30]} 27. Rh3 {[%emt 0:01:23]} Reb8 {[%emt 0:02:13]} 28. Rgh1 {[%emt 0:00:40]} Nf8 {[%emt 0:00:45]} 29. Bh6 {[%emt 0:00:35]} Ne6 {[%emt 0:00:47]} 30. Be3 {[%emt 0:00:04]} h5 {[%emt 0:00:40]} 31. f4 {[%emt 0:00:56]} f5 {[%emt 0:01:02]} 32. Rd1 {[%emt 0:00:35]} Rb3 {[%emt 0:01:38]} 33. Rd3 {[%emt 0:00:30]} Rab8 {[%emt 0:00:13]} 34. Rxb3 {[%emt 0:00:29]} Rxb3 {[%emt 0:00:01]} 35. Qh2 {[%emt 0:00:29]} Qe4 {[%emt 0:03:16]} 36. Bf2 {[%emt 0:00:14]} Rxh3 {[%emt 0:00:32]} 37. Qxh3 {[%emt 0:00:03]} Nxf4 {[%emt 0:00:08]} 38. Qh4 {[%emt 0:01:12]} Nd3+ {[%emt 0:00:49]} 39. Kd2 {[%emt 0:00:04]} f4 {[%emt 0:00:33]} 40. Qd8+ {[%emt 0:00:18]} Kh7 {[%emt 0:00:30]} 41. Bh4 {[%emt 0:30:05]} Nxb2 {[%emt 0:30:32]} 42. Bf6 {[%emt 0:00:11]} g5 {[%emt 0:00:05]} 43. Qh8+ {[%emt 0:01:23]} Kg6 {[%emt 0:00:04]} 44. Qg7+ {[%emt 0:00:10]} Kf5 {[%emt 0:00:04]} 45. Qh7+ {[%emt 0:00:33]} 1-0